bitfinex-derivatives/quotes_BTCF0:USTF0_20240817
["timestamp","ask_amount","ask_price","bid_price","bid_amount"]
[1723877502143,0.17208431,59166.0,59165.0,0.35714917]
[1723877504640,0.17208431,59166.0,59165.0,0.26374917]
[1723877504940,0.17208431,59166.0,59165.0,0.35714917]
[1723877505134,0.2227115,59166.0,59165.0,0.35714917]
[1723877506246,0.2227115,59166.0,59165.0,0.35678747]
[1723877507439,0.17208431,59166.0,59165.0,0.44126522]
[1723877508046,0.17208431,59166.0,59165.0,0.44161287]
[1723877509138,0.17208431,59166.0,59165.0,0.35472047]
[1723877509346,0.17208431,59166.0,59165.0,0.27024272]
[1723877509644,0.17208431,59166.0,59165.0,0.35472047]
[1723877511938,0.17208431,59166.0,59165.0,0.30682047]
[1723877512141,0.17208431,59166.0,59165.0,0.25782047]
[1723877514145,0.00308431,59166.0,59165.0,0.25782047]
[1723877515838,0.00308431,59166.0,59165.0,0.16442047]
[1723877516034,0.00308431,59166.0,59165.0,0.25782047]
[1723877517547,0.00308431,59166.0,59165.0,0.25991286]
[1723877521147,0.00025343,59173.0,59172.0,0.067583]
[1723877521351,0.03025343,59173.0,59172.0,0.51387305]
[1723877522043,0.03025343,59173.0,59172.0,0.428383]
[1723877522242,0.03025343,59173.0,59172.0,0.067583]
[1723877522243,0.08285353,59173.0,59172.0,0.067583]
[1723877523242,0.03225343,59173.0,59172.0,0.067583]
[1723877523443,0.03425343,59173.0,59172.0,0.067583]
[1723877523953,0.12765343,59173.0,59172.0,0.07760698]
[1723877524248,0.12765343,59173.0,59172.0,0.067583]
[1723877524445,0.17405343,59173.0,59172.0,0.067583]
[1723877527050,0.53485343,59173.0,59172.0,0.067583]
[1723877527555,0.44145343,59173.0,59172.0,0.067583]
[1723877527850,0.54523036,59173.0,59172.0,0.067583]
[1723877539850,0.18443036,59173.0,59172.0,0.067583]
[1723877540152,0.54523036,59173.0,59172.0,0.067583]
[1723877541255,0.62959948,59173.0,59172.0,0.067583]
[1723877544260,0.54523036,59173.0,59172.0,0.067583]
[1723877544860,0.62959948,59173.0,59172.0,0.067583]
[1723877545065,0.26879948,59173.0,59172.0,0.067583]
[1723877545266,0.62959948,59173.0,59172.0,0.067583]
[1723877547059,0.62959948,59173.0,59168.0,0.01013333]
[1723877547266,0.0934,59169.0,59167.0,0.13511894]
[1723877547468,0.4734,59169.0,59167.0,0.13511894]
[1723877548670,0.4734,59169.0,59167.0,0.1463444]
[1723877548671,4e-05,59168.0,59167.0,0.1463444]
[1723877548861,0.17004,59168.0,59167.0,0.1463444]
[1723877551868,0.17004,59168.0,59167.0,0.07881346]
[1723877552265,0.23749498,59168.0,59167.0,0.07881346]
[1723877553264,0.17004,59168.0,59167.0,0.07881346]
[1723877566984,0.17004,59168.0,59167.0,0.14640293]
[1723877567275,0.17004,59168.0,59167.0,0.07881346]
[1723877567481,0.25440912,59168.0,59167.0,0.07881346]
[1723877568068,0.32199712,59168.0,59167.0,0.01122546]
[1723877572075,0.68279712,59168.0,59167.0,0.01122546]
[1723877572683,0.598428,59168.0,59167.0,0.01122546]
[1723877573087,0.68279712,59168.0,59167.0,0.01122546]
[1723877574387,0.32199712,59168.0,59167.0,0.01122546]
[1723877574781,0.68279712,59168.0,59167.0,0.01122546]
[1723877575584,0.598428,59168.0,59167.0,0.01122546]
[1723877576376,0.237628,59168.0,59167.0,0.01122546]
[1723877576577,0.32199712,59168.0,59167.0,0.01122546]
[1723877576776,0.598428,59168.0,59167.0,0.01122546]
[1723877577282,0.237628,59168.0,59167.0,0.01122546]
[1723877577673,0.598428,59168.0,59167.0,0.01122546]
[1723877578283,0.68279712,59168.0,59167.0,0.01122546]
[1723877580083,0.77619712,59168.0,59167.0,0.01122546]
[1723877582286,0.41539712,59168.0,59167.0,0.01122546]
[1723877582584,0.77619712,59168.0,59167.0,0.01122546]
[1723877582990,0.53084,59168.0,59167.0,0.07881446]
[1723877583176,0.36084,59168.0,59167.0,0.22141446]
[1723877586893,4e-05,59168.0,59167.0,0.22141446]
[1723877589392,0.05062638,59168.0,59167.0,0.22141446]
[1723877592291,4e-05,59168.0,59167.0,0.22141446]
[1723877593291,0.18004,59168.0,59167.0,0.22141446]
[1723877606304,0.23062638,59168.0,59167.0,0.22141446]
[1723877606802,0.23062638,59168.0,59167.0,0.17551446]
[1723877608002,0.23064426,59168.0,59167.0,0.17551446]
[1723877608303,0.05064426,59168.0,59167.0,0.17551446]
[1723877611603,0.05064426,59168.0,59167.0,0.25995489]
[1723877611604,4e-05,59168.0,59167.0,0.25995489]
[1723877611807,4e-05,59168.0,59167.0,0.34660798]
[1723877612209,4e-05,59168.0,59167.0,0.29920798]
[1723877612408,4e-05,59168.0,59167.0,0.21476755]
[1723877613403,4e-05,59168.0,59167.0,0.21482253]
[1723877617618,4e-05,59168.0,59167.0,0.16552253]
[1723877618117,0.20004,59168.0,59167.0,0.16552253]
[1723877620321,0.2675127,59168.0,59167.0,0.2500256]
[1723877620507,0.2675127,59168.0,59167.0,0.16552253]
[1723877620712,0.2675127,59168.0,59167.0,0.25002645]
[1723877622412,0.2675127,59168.0,59167.0,0.16331838]
[1723877622609,0.2675127,59168.0,59167.0,0.07881446]
[1723877624110,0.2675127,59168.0,59167.0,0.16331838]
[1723877624510,0.2675127,59168.0,59167.0,0.07881446]
[1723877626313,0.0675127,59168.0,59167.0,0.07881446]
[1723877626924,0.0775127,59168.0,59167.0,0.07881446]
[1723877627822,0.0775127,59168.0,59167.0,0.17221446]
[1723877628321,0.0775127,59168.0,59167.0,0.07881446]
[1723877628524,0.0775127,59168.0,59167.0,0.17221446]
[1723877634921,0.0775127,59168.0,59167.0,0.07881446]
[1723877635121,0.0775127,59168.0,59167.0,0.17221446]
[1723877637421,0.01004,59168.0,59167.0,0.25671838]
[1723877637718,0.01004,59168.0,59167.0,0.34334311]
[1723877643419,0.01004,59168.0,59167.0,0.25671838]
[1723877643620,0.01004,59168.0,59167.0,0.34323245]
[1723877648724,0.0775127,59168.0,59167.0,0.25671838]
[1723877648925,0.01004,59168.0,59167.0,0.25671838]
[1723877649331,0.0775127,59168.0,59167.0,0.34329527]
[1723877649537,0.01004,59168.0,59167.0,0.34329527]
[1723877650237,0.0775127,59168.0,59167.0,0.34329527]
[1723877650737,0.01004,59168.0,59167.0,0.34329527]
[1723877652535,0.01004,59168.0,59167.0,0.25879135]
[1723877653533,0.01004,59168.0,59167.0,0.17221446]
[1723877653736,0.01004,59168.0,59167.0,0.25868302]
[1723877658245,0.01004,59168.0,59167.0,0.25866095]
[1723877658434,0.01004,59168.0,59167.0,0.17221446]
[1723877668149,4e-05,59168.0,59167.0,0.25873712]
[1723877668344,4e-05,59168.0,59167.0,0.61953712]
[1723877671155,4e-05,59168.0,59167.0,0.25873712]
[1723877673270,4e-05,59168.0,59167.0,0.72085768]
[1723877673969,4e-05,59168.0,59167.0,0.36005768]
[1723877674166,4e-05,59168.0,59167.0,0.72085768]
[1723877674364,4e-05,59168.0,59167.0,0.36005768]
[1723877674560,4e-05,59168.0,59167.0,0.72085768]
[1723877675264,4e-05,59168.0,59167.0,0.36005768]
[1723877675469,4e-05,59168.0,59167.0,0.72085768]
[1723877675966,4e-05,59168.0,59167.0,0.36005768]
[1723877676161,4e-05,59168.0,59167.0,0.72085768]
[1723877676363,4e-05,59168.0,59167.0,0.36005768]
[1723877676672,4e-05,59168.0,59167.0,0.72023902]
[1723877677061,4e-05,59168.0,59167.0,0.35943902]
[1723877677371,4e-05,59168.0,59167.0,0.61891846]
[1723877678069,4e-05,59168.0,59167.0,0.25811846]
[1723877678373,4e-05,59168.0,59167.0,0.61891846]
[1723877680970,4e-05,59168.0,59167.0,0.25811846]
[1723877681175,4e-05,59168.0,59167.0,0.61891846]
[1723877682079,4e-05,59168.0,59167.0,0.25811846]
[1723877682376,4e-05,59168.0,59167.0,0.72023902]
[1723877682578,4e-05,59168.0,59167.0,0.26603902]
[1723877682769,4e-05,59168.0,59167.0,0.72023902]
[1723877684267,4e-05,59168.0,59167.0,0.35943902]
[1723877684475,4e-05,59168.0,59167.0,0.72023902]
[1723877685572,4e-05,59168.0,59167.0,0.35943902]
[1723877685878,4e-05,59168.0,59167.0,0.72025819]
[1723877687480,4e-05,59168.0,59167.0,0.35945819]
[1723877687786,4e-05,59168.0,59167.0,0.72025819]
[1723877687986,4e-05,59168.0,59167.0,0.35945819]
[1723877688284,4e-05,59168.0,59167.0,0.72025819]
[1723877690280,4e-05,59168.0,59167.0,0.35945819]
[1723877690683,4e-05,59168.0,59167.0,0.72030018]
[1723877691393,4e-05,59168.0,59167.0,0.35950018]
[1723877691572,4e-05,59168.0,59167.0,0.72030018]
[1723877692177,4e-05,59168.0,59167.0,0.35950018]
[1723877692377,4e-05,59168.0,59167.0,0.72030018]
[1723877695188,4e-05,59168.0,59167.0,0.72038414]
[1723877695683,0.03236031,59177.0,59176.0,0.067578]
[1723877695883,0.01,59177.0,59176.0,0.24702712]
[1723877696281,0.01,59177.0,59176.0,0.34824776]
[1723877696479,0.01,59177.0,59176.0,0.24702712]
[1723877697090,0.01,59177.0,59176.0,0.34825272]
[1723877697479,0.016,59177.0,59176.0,0.34825272]
[1723877697688,0.016,59177.0,59176.0,0.24702712]
[1723877697893,0.022,59177.0,59176.0,0.24702712]
[1723877698190,0.022,59177.0,59176.0,0.33137252]
[1723877699481,0.022,59177.0,59176.0,0.33135268]
[1723877699678,0.022,59177.0,59176.0,0.25288396]
[1723877700178,0.022,59177.0,59176.0,0.33720754]
[1723877700683,0.022,59177.0,59176.0,0.26279569]
[1723877701086,0.022,59177.0,59176.0,0.34711974]
[1723877701387,0.022,59177.0,59176.0,0.25521378]
[1723877702398,0.022,59177.0,59176.0,0.17088973]
[1723877703790,0.022,59177.0,59176.0,0.53168973]
[1723877704378,0.022,59177.0,59176.0,0.17088973]
[1723877704579,0.022,59177.0,59176.0,0.53168973]
[1723877707996,0.022,59177.0,59176.0,0.17088973]
[1723877712100,0.022,59177.0,59176.0,0.53168973]
[1723877712693,0.022,59177.0,59176.0,0.17088973]
[1723877712895,0.022,59177.0,59176.0,0.53168973]
[1723877716687,0.022,59177.0,59176.0,0.61601378]
[1723877716892,0.022,59177.0,59176.0,0.53168973]
[1723877718198,0.022,59177.0,59176.0,0.17088973]
[1723877719391,0.022,59177.0,59176.0,0.25521378]
[1723877719595,0.022,59177.0,59176.0,0.34722856]
[1723877719998,0.022,59177.0,59176.0,0.17088973]
[1723877720701,0.022,59177.0,59176.0,0.34721461]
[1723877720902,0.022,59177.0,59176.0,0.26289056]
[1723877721300,0.022,59177.0,59176.0,0.62369056]
[1723877723300,0.022,59177.0,59176.0,0.26289056]
[1723877723496,0.022,59177.0,59176.0,0.62369056]
[1723877725496,0.022,59177.0,59176.0,0.72491616]
[1723877725697,0.022,59177.0,59176.0,0.72472602]
[1723877726601,0.022,59177.0,59176.0,0.72479186]
[1723877727000,0.022,59177.0,59176.0,0.62350042]
[1723877727395,0.022,59177.0,59176.0,0.72479186]
[1723877727600,0.022,59177.0,59176.0,0.62350042]
[1723877727816,0.022,59177.0,59176.0,0.72479923]
[1723877730208,0.022,59177.0,59176.0,0.7247477]
[1723877731509,0.022,59177.0,59176.0,0.3639477]
[1723877731709,0.022,59177.0,59176.0,0.7247477]
[1723877734604,0.022,59177.0,59176.0,0.62344889]
[1723877735205,0.022,59177.0,59176.0,0.72906526]
[1723877737509,0.022,59177.0,59176.0,0.8312993]
[1723877739508,0.022,59177.0,59176.0,0.83099637]
[1723877743907,0.022,59177.0,59176.0,0.83106754]
[1723877744507,0.012,59177.0,59176.0,1.15236548]
[1723877745005,0.012,59177.0,59176.0,4.92236548]
[1723877745599,0.012,59177.0,59176.0,1.15236548]
[1723877748316,0.012,59177.0,59176.0,0.79156548]
[1723877748615,0.012,59177.0,59176.0,1.15236548]
[1723877749511,0.012,59177.0,59176.0,1.08478748]
[1723877749713,0.012,59177.0,59176.0,0.7375256]
[1723877749913,0.012,59177.0,59176.0,0.8309256]
[1723877752709,0.012,59177.0,59176.0,0.7375256]
[1723877752915,0.012,59177.0,59176.0,0.83109291]
[1723877756914,0.012,59177.0,59176.0,0.47029291]
[1723877757109,0.012,59177.0,59176.0,0.83109291]
[1723877759629,0.012,59177.0,59176.0,0.47029291]
[1723877759826,0.012,59177.0,59176.0,0.83109291]
[1723877760028,0.012,59177.0,59176.0,0.47029291]
[1723877760228,0.012,59177.0,59176.0,0.83109291]
[1723877761923,0.012,59177.0,59176.0,0.47029291]
[1723877762117,0.012,59177.0,59176.0,0.83109291]
[1723877764636,0.012,59177.0,59176.0,0.47029291]
[1723877764833,0.012,59177.0,59176.0,0.83109291]
[1723877765623,0.012,59177.0,59176.0,0.6373061]
[1723877765930,0.012,59177.0,59176.0,0.83034302]
[1723877769926,0.012,59177.0,59176.0,0.46954302]
[1723877770129,0.012,59177.0,59176.0,0.6373061]
[1723877770330,0.012,59177.0,59176.0,0.83057622]
[1723877771037,0.012,59177.0,59176.0,0.46977622]
[1723877771234,0.012,59177.0,59176.0,0.83057622]
[1723877771634,0.012,59177.0,59176.0,0.72861338]
[1723877772135,0.012,59177.0,59176.0,0.36781338]
[1723877772432,0.012,59177.0,59176.0,0.72861338]
[1723877774834,0.012,59177.0,59176.0,0.36784729]
[1723877775444,0.012,59177.0,59176.0,0.72864729]
[1723877776641,0.012,59177.0,59176.0,0.83062895]
[1723877776834,0.012,59177.0,59176.0,0.36784729]
[1723877777028,0.012,59177.0,59176.0,0.83062662]
[1723877779542,0.012,59177.0,59176.0,0.83067074]
[1723877781345,0.012,59177.0,59176.0,0.62304344]
[1723877781545,0.012,59177.0,59176.0,0.72432428]
[1723877781746,0.012,59177.0,59176.0,0.63092428]
[1723877782041,0.012,59177.0,59176.0,0.72432428]
[1723877782442,0.012,59177.0,59176.0,0.36352428]
[1723877782949,0.012,59177.0,59176.0,0.72432428]
[1723877783947,0.012,59177.0,59176.0,0.63297057]
[1723877784143,0.012,59177.0,59176.0,0.36350772]
[1723877784349,0.012,59177.0,59176.0,0.72430772]
[1723877785055,0.012,59177.0,59176.0,0.36350772]
[1723877785256,0.012,59177.0,59176.0,0.72430772]
[1723877785455,0.012,59177.0,59176.0,0.36350772]
[1723877785658,0.012,59177.0,59176.0,0.72430772]
[1723877787456,0.012,59177.0,59176.0,0.62302688]
[1723877787849,0.012,59177.0,59176.0,0.26222688]
[1723877788049,0.012,59177.0,59176.0,0.62302688]
[1723877788760,0.012,59177.0,59176.0,0.26222688]
[1723877789057,0.012,59177.0,59176.0,0.62302688]
[1723877789651,0.012,59177.0,59176.0,0.52962688]
[1723877789958,0.012,59177.0,59176.0,0.62302688]
[1723877790159,0.012,59177.0,59176.0,0.26222688]
[1723877790454,0.012,59177.0,59176.0,0.62302688]
[1723877790853,0.012,59177.0,59176.0,0.72430851]
[1723877791253,0.012,59177.0,59176.0,0.83056824]
[1723877792065,0.012,59177.0,59176.0,0.46976824]
[1723877792259,0.012,59177.0,59176.0,0.83056824]
[1723877793360,0.012,59177.0,59176.0,0.83044263]
[1723877793762,0.012,59177.0,59176.0,0.46964263]
[1723877793960,0.012,59177.0,59176.0,0.83044263]
[1723877794162,0.012,59177.0,59176.0,0.46964263]
[1723877794366,0.012,59177.0,59176.0,0.83044263]
[1723877797265,0.012,59177.0,59176.0,0.46964263]
[1723877797571,0.012,59177.0,59176.0,0.83044263]
[1723877798063,0.012,59177.0,59176.0,0.46974738]
[1723877798271,0.012,59177.0,59176.0,0.83054738]
[1723877800769,0.012,59177.0,59176.0,0.46974738]
[1723877801266,0.012,59177.0,59176.0,0.83054738]
[1723877802063,0.012,59177.0,59176.0,0.46974738]
[1723877802466,0.012,59177.0,59176.0,0.83054738]
[1723877802768,0.012,59177.0,59176.0,0.46974978]
[1723877803276,0.012,59177.0,59176.0,0.83054978]
[1723877803863,0.012,59177.0,59176.0,0.46974978]
[1723877804263,0.012,59177.0,59176.0,0.83054978]
[1723877805357,0.012,59177.0,59176.0,0.46974978]
[1723877805561,0.012,59177.0,59176.0,0.83054978]
[1723877805759,0.192,59177.0,59176.0,0.73714978]
[1723877805974,0.25957215,59177.0,59176.0,0.16877506]
[1723877806170,0.25957215,59177.0,59176.0,0.25324111]
[1723877806375,0.71464182,59177.0,59176.0,0.14500852]
[1723877806874,1.15406,59177.0,59176.0,0.07748973]
[1723877807360,1.22157204,59177.0,59176.0,0.12810872]
[1723877808274,0.86077204,59177.0,59176.0,0.12810872]
[1723877808475,1.22157204,59177.0,59176.0,0.12810872]
[1723877810070,1.15406,59177.0,59176.0,0.07748973]
[1723877810981,0.79326,59177.0,59176.0,0.07748973]
[1723877812678,0.2863,59177.0,59176.0,0.07748973]
[1723877814375,0.79326,59177.0,59176.0,0.067578]
[1723877814573,0.2863,59177.0,59176.0,0.067578]
[1723877814780,0.35381204,59177.0,59176.0,0.067578]
[1723877814975,0.71461204,59177.0,59176.0,0.067578]
[1723877815590,0.6471,59177.0,59176.0,0.067578]
[1723877815772,0.71461204,59177.0,59176.0,0.067578]
[1723877816280,0.6471,59177.0,59176.0,0.067578]
[1723877821092,1.15406,59177.0,59176.0,0.067578]
[1723877823187,0.79326,59177.0,59176.0,0.067578]
[1723877823381,1.15406,59177.0,59176.0,0.067578]
[1723877823580,0.6471,59177.0,59176.0,0.067578]
[1723877825386,0.6471,59177.0,59159.0,0.067598]
[1723877825585,0.3608,59161.0,59160.0,0.35446002]
[1723877825787,0.3608,59161.0,59160.0,0.76711108]
[1723877825987,0.0934,59174.0,59171.0,0.067583]
[1723877826181,0.7216,59172.0,59171.0,0.067583]
[1723877826376,1.0516,59172.0,59171.0,0.067583]
[1723877826576,0.33,59172.0,59171.0,0.067583]
[1723877826883,1.0516,59172.0,59171.0,0.067583]
[1723877827685,1.0516,59172.0,59171.0,0.07792323]
[1723877828884,1.0526,59172.0,59171.0,0.07792323]
[1723877830999,1.627183,59172.0,59171.0,0.01034023]
[1723877831296,1.5596,59172.0,59163.0,0.067593]
[1723877831594,0.4542,59164.0,59163.0,0.067593]
[1723877832397,0.50472145,59164.0,59163.0,0.067593]
[1723877832593,0.45424,59164.0,59163.0,0.067593]
[1723877833389,1.57943345,59164.0,59155.0,0.00858476]
[1723877833587,0.3608,59156.0,59155.0,0.067602]
[1723877833793,0.3608,59156.0,59155.0,0.07619944]
[1723877833991,0.3598,59156.0,59155.0,0.07619944]
[1723877834295,0.3598,59156.0,59155.0,0.41433275]
[1723877834597,0.00025343,59161.0,59160.0,0.067597]
[1723877834796,0.00025343,59161.0,59160.0,0.160957]
[1723877835892,0.00125343,59161.0,59160.0,0.160957]
[1723877836699,0.00125343,59161.0,59160.0,0.17122028]
[1723877837589,0.00125343,59161.0,59160.0,0.07782028]
[1723877837895,0.00225343,59161.0,59160.0,0.17122028]
[1723877840093,0.36305343,59161.0,59160.0,0.17122028]
[1723877843395,0.36305343,59161.0,59160.0,0.25655973]
[1723877844393,0.36305343,59161.0,59160.0,0.25652017]
[1723877847101,0.36305343,59161.0,59160.0,0.25652666]
[1723877851611,0.36305343,59161.0,59160.0,0.25601278]
[1723877852802,0.00225343,59161.0,59160.0,0.25601278]
[1723877853303,0.36305343,59161.0,59160.0,0.25601278]
[1723877853897,0.00225343,59161.0,59160.0,0.25601278]
[1723877854197,0.36305343,59161.0,59160.0,0.25601278]
[1723877855801,0.00225343,59161.0,59160.0,0.25601278]
[1723877856003,0.36305343,59161.0,59160.0,0.25601278]
[1723877856897,0.36305343,59161.0,59160.0,0.35723183]
[1723877857095,0.36305343,59161.0,59160.0,0.42924907]
[1723877858605,0.36305343,59161.0,59160.0,0.52544812]
[1723877860703,0.36305343,59161.0,59160.0,0.52519796]
[1723877864700,0.00225343,59161.0,59160.0,0.52519796]
[1723877864900,0.36305343,59161.0,59160.0,0.52519796]
[1723877865305,0.36305343,59161.0,59160.0,0.52516325]
[1723877865705,0.00225343,59161.0,59160.0,0.52516325]
[1723877866102,0.36305343,59161.0,59160.0,0.52516325]
[1723877866301,0.00225343,59161.0,59160.0,0.52516325]
[1723877866501,0.36305343,59161.0,59160.0,0.52516325]
[1723877866901,0.00225343,59161.0,59160.0,0.52516325]
[1723877867513,0.36305343,59161.0,59160.0,0.52516325]
[1723877868010,0.00225343,59161.0,59160.0,0.52516325]
[1723877868205,0.36305343,59161.0,59160.0,0.52516325]
[1723877868809,0.00225343,59161.0,59160.0,0.52516325]
[1723877869008,0.36305343,59161.0,59160.0,0.52516325]
[1723877869612,0.36305343,59161.0,59160.0,0.45756625]
[1723877869816,0.36305343,59161.0,59160.0,0.26797736]
[1723877870115,0.36305343,59161.0,59160.0,0.36137736]
[1723877870509,0.36305343,59161.0,59160.0,0.26797736]
[1723877870705,0.36305343,59161.0,59160.0,0.25573807]
[1723877871108,0.36305343,59161.0,59160.0,0.2565216]
[1723877873520,0.36305343,59161.0,59160.0,0.35780534]
[1723877874125,0.36305343,59161.0,59160.0,0.2565216]
[1723877874311,0.36305343,59161.0,59160.0,0.25626581]
[1723877875013,0.00225343,59161.0,59160.0,0.25626581]
[1723877875319,0.72385343,59161.0,59160.0,0.25626581]
[1723877876123,0.00225343,59161.0,59160.0,0.25626581]
[1723877876323,0.72385343,59161.0,59160.0,0.25626581]
[1723877878518,0.36305343,59161.0,59160.0,0.25626581]
[1723877880522,0.36305343,59161.0,59160.0,0.35754955]
[1723877880827,0.36305343,59161.0,59160.0,0.45839115]
[1723877882016,0.36305343,59161.0,59160.0,0.45752725]
[1723877883016,0.00225343,59161.0,59160.0,0.45752725]
[1723877883216,0.36305343,59161.0,59160.0,0.45752725]
[1723877883416,0.36305343,59161.0,59160.0,0.25571038]
[1723877883632,0.36305343,59161.0,59160.0,0.36135016]
[1723877886328,0.00225343,59161.0,59160.0,0.36135016]
[1723877886828,0.36305343,59161.0,59160.0,0.36131976]
[1723877887031,0.00225343,59161.0,59160.0,0.36131976]
[1723877887222,0.36305343,59161.0,59160.0,0.36131976]
[1723877892122,0.36305343,59161.0,59160.0,0.4575058]
[1723877892322,0.00225343,59161.0,59160.0,0.4575058]
[1723877892523,0.36305343,59161.0,59160.0,0.4575058]
[1723877893626,0.00225343,59161.0,59160.0,0.4575058]
[1723877893933,0.36305343,59161.0,59160.0,0.4575058]
[1723877897630,0.00225343,59161.0,59160.0,0.4575058]
[1723877897832,0.36305343,59161.0,59160.0,0.4575058]
[1723877898029,0.00225343,59161.0,59160.0,0.4575058]
[1723877898230,0.36305343,59161.0,59160.0,0.4575058]
[1723877900334,0.36305343,59161.0,59160.0,0.4575385]
[1723877900932,0.36305343,59161.0,59160.0,0.3641385]
[1723877901142,0.36305343,59161.0,59160.0,0.36135585]
[1723877901341,0.36305343,59161.0,59160.0,0.35703921]
[1723877901543,0.36305343,59161.0,59160.0,0.25571607]
[1723877902036,0.36305343,59161.0,59160.0,0.35703921]
[1723877902232,0.36305343,59161.0,59160.0,0.25571607]
[1723877902636,0.36305343,59161.0,59160.0,0.35703921]
[1723877904549,0.36305343,59161.0,59160.0,0.35732111]
[1723877905339,0.36305343,59161.0,59160.0,0.25599797]
[1723877905541,0.36305343,59161.0,59160.0,0.36140024]
[1723877906442,0.36305343,59161.0,59160.0,0.4576317]
[1723877910645,0.36305343,59161.0,59160.0,0.77948934]
[1723877910845,0.30120833,59161.0,59160.0,0.86189234]
[1723877911038,0.30120833,59161.0,59160.0,0.92948934]
[1723877911238,0.30120833,59161.0,59160.0,4.63189234]
[1723877913545,0.3608,59165.0,59160.0,4.56433534]
[1723877913745,0.3608,59165.0,59164.0,0.26234974]
[1723877913951,0.3608,59165.0,59164.0,0.34688885]
[1723877914152,0.3608,59165.0,59164.0,0.6020736]
[1723877914447,0.00025343,59166.0,59165.0,0.067591]
[1723877914747,0.00025343,59166.0,59165.0,0.15181986]
[1723877915052,0.36105343,59166.0,59165.0,0.15181986]
[1723877915553,0.36105343,59166.0,59165.0,0.15381986]
[1723877915740,0.00025343,59166.0,59165.0,0.15381986]
[1723877915943,0.36105343,59166.0,59165.0,0.15381986]
[1723877916648,0.36105343,59166.0,59165.0,0.15481986]
[1723877917344,0.00025343,59166.0,59165.0,0.15481986]
[1723877917544,0.36105343,59166.0,59165.0,0.15481986]
[1723877919141,0.36105343,59166.0,59165.0,0.23920788]
[1723877919348,0.36105343,59166.0,59165.0,0.15497902]
[1723877920549,0.00025343,59166.0,59165.0,0.25633676]
[1723877920854,0.36105343,59166.0,59165.0,0.3619746]
[1723877921954,0.36105343,59166.0,59165.0,0.26061686]
[1723877923059,0.36105343,59166.0,59165.0,0.36196172]
[1723877924053,0.36105343,59166.0,59165.0,0.36193392]
[1723877924253,0.36105343,59166.0,59165.0,0.26058906]
[1723877925250,0.00025343,59166.0,59165.0,0.26058906]
[1723877925749,0.36105343,59166.0,59165.0,0.26058906]
[1723877930650,0.00025343,59166.0,59165.0,0.26058906]
[1723877930849,0.36105343,59166.0,59165.0,0.26058906]
[1723877931054,0.36105343,59166.0,59165.0,0.36193197]
[1723877931561,0.36105343,59166.0,59165.0,0.26058906]
[1723877932059,0.36105343,59166.0,59165.0,0.36193916]
[1723877932252,0.36105343,59166.0,59165.0,0.25630132]
[1723877932652,0.36105343,59166.0,59165.0,0.26058798]
[1723877933054,0.36105343,59166.0,59165.0,0.25634717]
[1723877933458,0.36105343,59166.0,59165.0,0.2606235]
[1723877935258,0.36105343,59166.0,59165.0,0.15498674]
[1723877936468,0.36105343,59166.0,59165.0,0.2606235]
[1723877936762,0.00025343,59166.0,59165.0,0.2606235]
[1723877936967,0.36105343,59166.0,59165.0,0.2606235]
[1723877937262,0.36105343,59166.0,59165.0,0.15498674]
[1723877937467,0.36105343,59166.0,59165.0,0.2606235]
[1723877937867,0.00025343,59166.0,59165.0,0.2606235]
[1723877938166,0.36105343,59166.0,59165.0,0.2606235]
[1723877939863,0.00025343,59166.0,59165.0,0.2606235]
[1723877940064,0.36105343,59166.0,59165.0,0.2606235]
[1723877940970,0.36105343,59166.0,59165.0,0.26056751]
[1723877941167,0.36105343,59166.0,59165.0,0.3566366]
[1723877943965,0.00025343,59166.0,59165.0,0.3566366]
[1723877944170,0.36105343,59166.0,59165.0,0.3566366]
[1723877944365,0.36105343,59166.0,59165.0,0.26056751]
[1723877944870,0.00025343,59166.0,59165.0,0.26056751]
[1723877945174,0.36105343,59166.0,59165.0,0.3566499]
[1723877945561,0.36105343,59166.0,59165.0,0.35666547]
[1723877947474,0.36105343,59166.0,59165.0,0.35672378]
[1723877948371,0.36105343,59166.0,59165.0,0.25634344]
[1723877948569,0.41164467,59166.0,59165.0,0.15494621]
[1723877948774,0.36105343,59166.0,59165.0,0.25634344]
[1723877949976,0.36105343,59166.0,59165.0,0.25619266]
[1723877950472,0.36105343,59166.0,59165.0,0.15479543]
[1723877950661,0.00025343,59166.0,59165.0,0.15479543]
[1723877950862,0.36105343,59166.0,59165.0,0.15479543]
[1723877952365,0.00025343,59166.0,59165.0,0.15479543]
[1723877952575,0.36105343,59166.0,59165.0,0.15479543]
[1723877953674,0.41164467,59166.0,59165.0,0.15479543]
[1723877955984,0.05084467,59166.0,59165.0,0.15479543]
[1723877956175,0.41164467,59166.0,59165.0,0.15479543]
[1723877956373,0.05084467,59166.0,59165.0,0.15479543]
[1723877956684,0.41164467,59166.0,59165.0,0.15479543]
[1723877957276,0.36105343,59166.0,59165.0,0.15479543]
[1723877961085,0.00025343,59166.0,59165.0,0.15479543]
[1723877961281,0.41169973,59166.0,59165.0,0.15479543]
[1723877961677,0.36105343,59166.0,59165.0,0.15479543]
[1723877964878,0.00025343,59166.0,59165.0,0.15479543]
[1723877965087,0.36105343,59166.0,59165.0,0.15479543]
[1723877965479,0.36105343,59166.0,59165.0,0.15516153]
[1723877968488,0.36105343,59166.0,59165.0,0.15510215]
[1723877969489,0.41169973,59166.0,59165.0,0.24850215]
[1723877969695,0.36105343,59166.0,59165.0,0.24850215]
[1723877969998,0.00025343,59166.0,59165.0,0.24850215]
[1723877970294,0.36105343,59166.0,59165.0,0.24850215]
[1723877971802,0.00025343,59166.0,59165.0,0.24850215]
[1723877972004,0.36105343,59166.0,59165.0,0.24850215]
[1723877972901,0.41169973,59166.0,59165.0,0.24850215]
[1723877975703,0.36105343,59166.0,59165.0,0.24850215]
[1723877976096,0.41169973,59166.0,59165.0,0.24850215]
[1723877976400,0.36105343,59166.0,59165.0,0.24850215]
[1723877977699,0.36105343,59166.0,59165.0,0.2485288]
[1723877978990,0.00025343,59166.0,59165.0,0.2485288]
[1723877979192,0.36105343,59166.0,59165.0,0.2485288]
[1723877979996,0.36105343,59166.0,59165.0,0.34992603]
[1723877980398,0.36105343,59166.0,59165.0,0.35416377]
[1723877982212,0.36105343,59166.0,59165.0,0.35383929]
[1723877982696,0.00025343,59166.0,59165.0,0.44978853]
[1723877982893,0.36105343,59166.0,59165.0,0.44978853]
[1723877984206,0.00025343,59166.0,59165.0,0.44978853]
[1723877984408,0.36105343,59166.0,59165.0,0.44978853]
[1723877984710,0.00025343,59166.0,59165.0,0.44978853]